bitfinex-derivatives/quotes_BTCF0:USTF0_20250703
["timestamp","ask_amount","ask_price","bid_price","bid_amount"]
[1751532358374,1.99399887,109590.0,109580.0,0.004]
[1751532359882,1.99399887,109590.0,109580.0,0.1864538]
[1751532360080,1.99399887,109590.0,109580.0,0.064]
[1751532360276,1.99399887,109590.0,109580.0,0.5314259]
[1751532362479,0.93491887,109590.0,109580.0,0.094]
[1751532362782,2.01034477,109590.0,109580.0,0.094]
[1751532363279,1.76291887,109590.0,109580.0,0.094]
[1751532363879,1.74780645,109590.0,109580.0,0.094]
[1751532365178,1.76264118,109590.0,109580.0,0.094]
[1751532365374,1.76264118,109590.0,109580.0,0.004]
[1751532365583,1.76264118,109590.0,109580.0,0.054]
[1751532366287,1.76264118,109590.0,109580.0,0.004]
[1751532366583,1.76264118,109590.0,109580.0,0.194]
[1751532367387,1.74780645,109590.0,109580.0,0.194]
[1751532368687,1.76273672,109590.0,109580.0,0.194]
[1751532369985,0.1824538,109580.0,109570.0,0.02724579]
[1751532370185,0.1824871,109560.0,109550.0,0.36737795]
[1751532370388,1.5813271,109560.0,109550.0,0.36737795]
[1751532370689,2.15521325,109560.0,109550.0,0.36737795]
[1751532370889,2.28216311,109560.0,109550.0,0.36737795]
[1751532371291,2.22541976,109560.0,109550.0,0.36737795]
[1751532371790,1.97816943,109560.0,109550.0,0.36737795]
[1751532371990,1.73056796,109560.0,109550.0,0.61365726]
[1751532372192,1.97716943,109560.0,109550.0,0.43115346]
[1751532372593,1.97716943,109560.0,109550.0,0.61365726]
[1751532372790,1.97716943,109560.0,109550.0,0.61665726]
[1751532373188,2.2247709,109560.0,109550.0,0.43815346]
[1751532373390,2.2247709,109560.0,109550.0,0.38815346]
[1751532373786,1.97716943,109560.0,109550.0,0.38815346]
[1751532374292,1.99897238,109560.0,109550.0,0.38815346]
[1751532374497,1.99897238,109560.0,109550.0,0.37437795]
[1751532374693,2.5513172,109560.0,109510.0,0.06544869]
[1751532374894,2.5513172,109560.0,109510.0,0.087892]
[1751532374895,0.43015527,109520.0,109510.0,0.087892]
[1751532375087,1.85560126,109520.0,109510.0,0.087892]
[1751532375286,1.67139979,109520.0,109510.0,0.147892]
[1751532375488,1.67139979,109520.0,109510.0,0.5504625]
[1751532375994,1.67139979,109520.0,109510.0,0.116892]
[1751532376189,1.91900126,109520.0,109510.0,0.2844625]
[1751532376383,1.91900126,109520.0,109510.0,0.5944625]
[1751532376587,1.67139979,109520.0,109510.0,0.5894625]
[1751532376789,1.67139979,109520.0,109510.0,0.5834625]
[1751532377095,1.67139979,109520.0,109510.0,0.3764625]
[1751532378195,1.67139979,109520.0,109510.0,0.3064625]
[1751532378583,1.70209979,109520.0,109510.0,0.5764625]
[1751532378788,0.64321979,109520.0,109510.0,0.5764625]
[1751532379098,1.70225979,109520.0,109510.0,0.5764625]
[1751532379290,1.68045684,109520.0,109510.0,0.5764625]
[1751532379683,1.68045684,109520.0,109510.0,0.330692]
[1751532379891,0.1826038,109490.0,109480.0,0.0140287]
[1751532380089,1.63840527,109490.0,109480.0,0.00475238]
[1751532380397,1.3908038,109490.0,109480.0,0.30475238]
[1751532380788,1.3908038,109490.0,109480.0,0.55235385]
[1751532380992,1.4233038,109490.0,109480.0,0.30475238]
[1751532381193,1.4537038,109490.0,109480.0,0.30475238]
[1751532381393,1.4537038,109490.0,109480.0,0.48737278]
[1751532381596,1.0128838,109490.0,109480.0,0.73597425]
[1751532381795,1.3928838,109490.0,109480.0,0.52877425]
[1751532382099,1.3928838,109490.0,109480.0,0.53977425]
[1751532382301,1.3928838,109490.0,109480.0,0.34217278]
[1751532382490,1.3928838,109490.0,109480.0,0.52977425]
[1751532382686,1.3928838,109490.0,109480.0,0.59217278]
[1751532383493,0.2426038,109490.0,109480.0,0.59217278]
[1751532383799,1.0129238,109490.0,109480.0,0.83977425]
[1751532383992,1.3929238,109490.0,109480.0,0.83977425]
[1751532384492,1.08711051,109490.0,109480.0,0.83977425]
[1751532384897,1.40711051,109490.0,109480.0,0.83977425]
[1751532385100,0.25679051,109490.0,109480.0,0.83977425]
[1751532385402,0.25679041,109490.0,109480.0,0.83977425]
[1751532387302,0.07418671,109490.0,109480.0,0.83977425]
[1751532387502,1.3808715,109500.0,109490.0,0.1826037]
[1751532387706,1.7608715,109500.0,109490.0,0.78050987]
[1751532388598,1.7628715,109500.0,109490.0,0.78050987]
[1751532389098,1.83727363,109500.0,109490.0,0.78050987]
[1751532390604,1.83727363,109500.0,109490.0,0.5329084]
[1751532390798,0.77595363,109500.0,109490.0,0.5329084]
[1751532390993,0.77595363,109500.0,109490.0,0.2829084]
[1751532390994,0.72595363,109500.0,109490.0,0.2829084]
[1751532391299,0.72595363,109500.0,109490.0,0.5929084]
[1751532391903,0.72595363,109500.0,109490.0,0.60718183]
[1751532394413,0.74754737,109500.0,109490.0,0.85478302]
[1751532394812,0.74754737,109500.0,109490.0,0.60718155]
[1751532395005,0.74754737,109500.0,109490.0,0.85478302]
[1751532395205,0.41754737,109500.0,109490.0,0.85478302]
[1751532396204,0.74754737,109500.0,109490.0,0.55478302]
[1751532397511,0.74754737,109500.0,109490.0,0.7947833]
[1751532398811,0.41754737,109500.0,109490.0,0.7947833]
[1751532399616,0.41754737,109500.0,109490.0,0.7784786]
[1751532399617,0.76754737,109500.0,109490.0,0.7784786]
[1751532399810,0.76754737,109500.0,109490.0,0.53087713]
[1751532400010,0.76754737,109500.0,109490.0,0.7784786]
[1751532400917,0.80004737,109500.0,109490.0,0.53087713]
[1751532402616,1.08064884,109500.0,109490.0,0.27087713]
[1751532403309,0.83304737,109500.0,109490.0,0.27087713]
[1751532404417,0.83304737,109500.0,109490.0,0.5184786]
[1751532405020,0.83304737,109500.0,109490.0,0.20687713]
[1751532408724,0.83404737,109500.0,109490.0,0.20687713]
[1751532410029,0.83404737,109500.0,109490.0,0.4544786]
[1751532410326,0.83404737,109500.0,109490.0,0.73020517]
[1751532410731,0.79404737,109500.0,109490.0,0.73020517]
[1751532410928,0.48404737,109500.0,109490.0,0.73020517]
[1751532412731,0.48404737,109500.0,109490.0,0.4826037]
[1751532412933,0.48404737,109500.0,109490.0,0.73020517]
[1751532413229,0.63159647,109500.0,109490.0,0.79440517]
[1751532413436,0.28159647,109500.0,109490.0,0.79440517]
[1751532414227,0.26000273,109500.0,109490.0,0.79440517]
[1751532415235,0.26000273,109500.0,109490.0,0.83085408]
[1751532415435,0.26000273,109500.0,109490.0,0.79440517]
[1751532419234,0.07740213,109500.0,109490.0,0.79440517]
[1751532419430,0.07740213,109500.0,109490.0,1.19085408]
[1751532419634,0.07740213,109500.0,109490.0,1.68413408]
[1751532420034,0.07740213,109500.0,109490.0,1.7387112]
[1751532420235,0.07740213,109500.0,109490.0,1.70226229]
[1751532420538,0.07740213,109500.0,109490.0,1.73868478]
[1751532422445,0.07740213,109500.0,109490.0,1.68410766]
[1751532423240,0.09885538,109500.0,109490.0,1.64768517]
[1751532423736,0.09785538,109500.0,109490.0,1.96768517]
[1751532423943,0.09785538,109500.0,109490.0,1.96968517]
[1751532424138,0.09785538,109500.0,109490.0,1.7220837]
[1751532424442,0.09785538,109500.0,109490.0,1.64968517]
[1751532424839,0.09785538,109500.0,109490.0,1.64768517]
[1751532425144,0.09985538,109500.0,109490.0,1.64768517]
[1751532427434,0.09785538,109500.0,109490.0,1.64768517]
[1751532429247,0.28044248,109500.0,109490.0,1.64768517]
[1751532429842,0.27844248,109500.0,109490.0,1.64768517]
[1751532430345,0.07440213,109500.0,109490.0,1.70226229]
[1751532430542,0.35267206,109510.0,109500.0,0.182587]
[1751532430747,0.37410525,109510.0,109500.0,0.76558847]
[1751532431543,0.44809595,109510.0,109500.0,0.76558847]
[1751532431737,0.45009595,109510.0,109500.0,0.77456936]
[1751532433051,0.45209595,109510.0,109500.0,0.77456936]
[1751532433354,0.45209595,109510.0,109500.0,1.60704936]
[1751532438257,0.45209595,109510.0,109500.0,1.57474936]
[1751532449667,0.29729445,109510.0,109500.0,1.87692795]
[1751532449969,0.29729445,109510.0,109500.0,1.94192101]
[1751532451065,0.11472405,109510.0,109500.0,1.97192101]
[1751532451265,0.29729445,109510.0,109500.0,1.97192101]
[1751532451769,0.29729445,109510.0,109500.0,1.7242907]
[1751532452865,0.29729445,109510.0,109500.0,1.6942907]
[1751532453074,0.29729445,109510.0,109500.0,1.7542907]
[1751532453476,0.36099445,109510.0,109500.0,1.7542907]
[1751532453776,0.36099445,109510.0,109500.0,0.9218107]
[1751532453977,0.36099445,109510.0,109500.0,1.7529307]
[1751532456476,0.36099445,109510.0,109500.0,1.7527707]
[1751532457181,0.36099445,109510.0,109500.0,0.9218107]
[1751532457482,0.29729445,109510.0,109500.0,1.7527307]
[1751532459080,0.29729445,109510.0,109500.0,1.69815358]
[1751532466384,0.29729445,109510.0,109500.0,1.7527307]
[1751532470792,0.29729445,109510.0,109500.0,2.0427307]
[1751532470992,0.29729445,109510.0,109500.0,1.98815358]
[1751532471692,0.29729445,109510.0,109500.0,1.77815358]
[1751532471888,0.29729445,109510.0,109500.0,2.19584923]
[1751532472096,0.29729445,109510.0,109500.0,1.94584923]
[1751532472392,0.29729445,109510.0,109500.0,2.19584923]
[1751532476198,0.29729445,109510.0,109500.0,1.36492923]
[1751532476394,0.29729445,109510.0,109500.0,2.19480923]
[1751532476997,0.29729445,109510.0,109500.0,2.24938635]
[1751532477192,0.29729445,109510.0,109500.0,2.05938635]
[1751532477393,0.29729445,109510.0,109500.0,2.05934635]
[1751532480702,0.54497512,109510.0,109500.0,2.05934635]
[1751532481398,0.29729445,109510.0,109500.0,2.05934635]
[1751532483202,0.29729445,109510.0,109500.0,2.00476923]
[1751532483698,0.54497512,109510.0,109500.0,1.69178856]
[1751532483903,0.64117512,109510.0,109500.0,1.69178856]
[1751532486497,0.64117512,109510.0,109500.0,1.93946923]
[1751532486706,0.75117512,109510.0,109500.0,1.64958767]
[1751532487510,0.72974193,109510.0,109500.0,1.64958767]
[1751532487812,0.61974193,109510.0,109500.0,1.64958767]
[1751532488802,0.61974193,109510.0,109500.0,1.64954767]
[1751532489209,0.61974193,109510.0,109500.0,0.82026767]
[1751532489409,0.61974193,109510.0,109500.0,1.64962767]
[1751532490505,0.96974193,109510.0,109500.0,0.452587]
[1751532494108,0.97536323,109510.0,109500.0,0.452587]
[1751532494513,0.97536323,109510.0,109500.0,0.48903613]
[1751532497013,0.96974193,109510.0,109500.0,0.48903613]
[1751532497713,0.97511423,109510.0,109500.0,0.48903613]
[1751532498513,0.96974193,109510.0,109500.0,0.48903613]
[1751532505322,1.2174226,109510.0,109490.0,0.47644913]
[1751532505526,1.60336834,109500.0,109490.0,0.53363513]
[1751532505825,1.97336834,109500.0,109490.0,0.47905801]
[1751532506228,1.97336834,109500.0,109490.0,0.4426037]
[1751532509231,1.97336834,109500.0,109490.0,0.26]
[1751532510032,1.97336834,109500.0,109490.0,0.4426037]
[1751532510835,1.478007,109500.0,109490.0,0.4426037]
[1751532511028,1.97336834,109500.0,109490.0,0.4426037]
[1751532511228,2.20460834,109500.0,109490.0,0.4426037]
[1751532511429,0.89636767,109500.0,109490.0,0.69028437]
[1751532511630,1.333147,109500.0,109490.0,0.69028437]
[1751532511829,1.243147,109500.0,109490.0,0.78428437]
[1751532512235,0.182587,109500.0,109490.0,0.78428437]
[1751532512431,0.182587,109500.0,109490.0,1.47890984]
[1751532512432,0.1825871,109500.0,109490.0,1.47890984]
[1751532512634,1.23817086,109510.0,109500.0,0.1825871]
[1751532512832,0.40881086,109510.0,109500.0,1.03934844]
[1751532513434,0.40881086,109510.0,109500.0,1.07580275]
[1751532513834,0.41281086,109510.0,109500.0,1.07580275]
[1751532514738,0.66049153,109510.0,109500.0,0.82812208]
[1751532521538,0.66049153,109510.0,109500.0,0.86042208]
[1751532523440,0.66049153,109510.0,109500.0,0.82396777]
[1751532525637,0.64519137,109510.0,109500.0,0.82396777]
[1751532526844,0.64519137,109510.0,109500.0,0.5762871]
[1751532527040,0.64519137,109510.0,109500.0,1.07164844]
[1751532527642,0.3975107,109510.0,109500.0,1.07164844]
[1751532528043,0.64519137,109510.0,109500.0,1.07164844]
[1751532530649,0.64519137,109510.0,109500.0,1.03934844]
[1751532530848,0.64519137,109510.0,109500.0,1.06944844]
[1751532533147,0.3975107,109510.0,109500.0,1.06944844]
[1751532533350,0.64519137,109510.0,109500.0,1.06944844]
[1751532534149,0.64519137,109510.0,109500.0,1.03934844]
[1751532534448,0.64519137,109510.0,109500.0,0.82466777]
[1751532535044,0.59954517,109510.0,109500.0,0.82466777]
[1751532537252,0.59954517,109510.0,109500.0,0.86112208]
[1751532537954,0.59954517,109510.0,109500.0,0.61344141]
[1751532538250,0.59954517,109510.0,109500.0,0.79166777]
[1751532538553,1.03584517,109510.0,109500.0,0.79166777]
[1751532538753,1.03584517,109510.0,109500.0,0.4825871]
[1751532540248,1.03584517,109510.0,109500.0,0.51904141]
[1751532540643,1.03584517,109510.0,109500.0,0.4825871]
[1751532541357,1.28352584,109510.0,109500.0,0.3]
[1751532541953,1.03584517,109510.0,109500.0,0.3]
[1751532542354,1.28352584,109510.0,109500.0,0.3]
[1751532544857,1.03584517,109510.0,109500.0,0.3]
[1751532545559,0.182587,109500.0,109490.0,0.03645431]
[1751532545760,2.06593654,109500.0,109490.0,0.49905801]
[1751532545957,2.09723654,109500.0,109490.0,0.49905801]
[1751532546159,2.09723654,109500.0,109490.0,0.31645431]
[1751532546353,2.09723654,109500.0,109490.0,0.28]
[1751532546554,1.6018752,109500.0,109490.0,0.4626037]
[1751532546858,2.09723654,109500.0,109490.0,0.28]
[1751532549062,0.1826037,109490.0,109480.0,0.30464098]
[1751532549359,0.88794364,109490.0,109480.0,0.32745776]
[1751532549561,0.92074364,109490.0,109480.0,0.32745776]
[1751532550458,0.92074364,109490.0,109480.0,0.29100345]
[1751532551161,0.92074364,109490.0,109480.0,0.30661525]
[1751532551461,0.92074364,109490.0,109480.0,0.30861525]
[1751532552149,0.92074364,109490.0,109480.0,0.03861525]
[1751532552358,0.92074364,109490.0,109480.0,0.30861525]
[1751532552860,0.92701688,109490.0,109480.0,0.29500345]
[1751532553061,0.92701688,109490.0,109480.0,0.27875238]
[1751532554564,0.92074364,109490.0,109480.0,0.27875238]
[1751532555563,0.92074364,109490.0,109480.0,0.46137278]
[1751532560070,1.98130364,109490.0,109480.0,0.46137278]
[1751532561475,1.98130364,109490.0,109480.0,0.70905345]
[1751532561675,1.98130364,109490.0,109480.0,0.46137278]
[1751532562977,1.73362297,109490.0,109480.0,0.46137278]
[1751532563275,1.98130364,109490.0,109480.0,0.46137278]
[1751532566278,1.73362297,109490.0,109480.0,0.46137278]
[1751532566473,1.98130364,109490.0,109480.0,0.70905345]
[1751532566673,1.98130364,109490.0,109480.0,0.80695345]
[1751532567379,1.98130364,109490.0,109480.0,0.55927278]
[1751532567572,1.98130364,109490.0,109480.0,0.80695345]
[1751532568477,0.82534364,109490.0,109480.0,0.80695345]
[1751532568678,1.88594364,109490.0,109480.0,0.80695345]
[1751532569073,0.19766297,109490.0,109480.0,1.37463412]
[1751532569578,0.19766297,109490.0,109480.0,1.41108843]
[1751532570278,0.01505927,109490.0,109480.0,1.09108843]
[1751532570474,0.01505927,109490.0,109480.0,1.44108843]
[1751532570881,0.01505927,109490.0,109480.0,1.09108843]
[1751532571180,1.8875518,109510.0,109500.0,0.182587]
[1751532571370,1.8663118,109510.0,109500.0,1.00794834]
[1751532571565,1.8663118,109510.0,109500.0,1.10424834]
[1751532571566,2.6956318,109510.0,109500.0,1.10424834]
[1751532571776,2.6956318,109510.0,109500.0,0.85660071]
[1751532572274,1.8683118,109510.0,109500.0,0.85660071]
[1751532572573,2.6995918,109510.0,109500.0,0.85660071]
[1751532574279,1.8703118,109510.0,109500.0,0.85660071]
[1751532576576,1.88555248,109510.0,109500.0,0.85660071]
[1751532580082,1.8703118,109510.0,109500.0,0.85660071]
[1751532580879,1.8703118,109510.0,109500.0,0.87335249]
[1751532584580,1.8703118,109510.0,109500.0,0.87341515]
[1751532584785,1.8703118,109510.0,109500.0,0.88038166]
[1751532585584,1.7790205,109510.0,109500.0,0.88038166]
[1751532585886,0.5162205,109510.0,109500.0,0.88038166]
[1751532587787,0.3162205,109510.0,109500.0,0.88038166]
[1751532588187,0.3162205,109510.0,109500.0,0.88012097]
[1751532588882,0.3062205,109510.0,109500.0,0.88012097]
[1751532591788,0.3062205,109510.0,109500.0,1.1277938]
[1751532592791,0.55391377,109510.0,109500.0,0.88010053]
[1751532592990,0.3062205,109510.0,109500.0,1.1277938]
[1751532599400,0.55391377,109510.0,109500.0,0.88010053]
[1751532599801,0.61641377,109510.0,109500.0,0.88010053]
[1751532600404,0.61641377,109510.0,109500.0,0.91655484]
[1751532601200,0.61641377,109510.0,109500.0,0.88405484]
[1751532601601,0.61641377,109510.0,109500.0,0.87708833]
[1751532602000,0.61641377,109510.0,109500.0,0.62939506]
[1751532602206,0.61641377,109510.0,109500.0,0.81328833]
[1751532603405,0.61641377,109510.0,109500.0,0.56559506]
[1751532603605,0.61641377,109510.0,109500.0,0.81328833]
[1751532604408,0.97641377,109510.0,109500.0,0.81328833]
[1751532607810,0.97641377,109510.0,109500.0,0.56559506]
[1751532608010,0.97641377,109510.0,109500.0,0.81328833]
[1751532611903,1.00851377,109510.0,109500.0,0.81328833]
[1751532612304,0.96851377,109510.0,109500.0,0.81328833]
[1751532613312,0.96851377,109510.0,109500.0,0.77683402]
[1751532615214,0.64851377,109510.0,109500.0,0.77683402]
[1751532615713,0.65851377,109510.0,109500.0,0.77683402]
[1751532615916,0.64851377,109510.0,109500.0,0.77683402]
[1751532616515,1.00851377,109510.0,109500.0,0.77683402]
[1751532624520,1.00851377,109510.0,109500.0,0.81328833]
[1751532626417,1.01851377,109510.0,109500.0,0.77683402]
[1751532628325,1.01851377,109510.0,109500.0,0.81328833]
[1751532628620,1.01851377,109510.0,109500.0,0.56559506]
[1751532628825,1.01851377,109510.0,109500.0,0.52914075]
[1751532629125,1.01851377,109510.0,109500.0,0.77683402]
[1751532629328,1.01851377,109510.0,109500.0,0.52914075]
[1751532629826,0.7708205,109510.0,109500.0,0.52914075]
[1751532630125,1.01851377,109510.0,109500.0,0.52914075]
[1751532630727,1.01851377,109510.0,109500.0,0.77683402]
[1751532631023,0.7708205,109510.0,109500.0,0.77683402]
[1751532631229,1.01851377,109510.0,109500.0,0.77683402]
[1751532632330,1.01851377,109510.0,109500.0,0.81328833]
[1751532635130,1.01851377,109510.0,109500.0,0.81346711]
[1751532637331,0.77851377,109510.0,109500.0,0.81346711]
[1751532637528,0.77851377,109510.0,109500.0,0.56577384]
[1751532637726,0.77851377,109510.0,109500.0,0.81346711]
[1751532638531,0.77851377,109510.0,109500.0,0.81332309]
[1751532640531,0.77851377,109510.0,109500.0,0.813124]
[1751532644034,0.77851377,109510.0,109500.0,0.8135398]
[1751532646436,0.77851377,109510.0,109500.0,0.8454398]
[1751532646630,1.00851377,109510.0,109500.0,0.8454398]
[1751532647136,0.64851377,109510.0,109500.0,0.8454398]
[1751532647436,0.75851377,109510.0,109500.0,0.8454398]
[1751532650737,0.95851377,109510.0,109500.0,0.8454398]
[1751532655939,0.74851377,109510.0,109500.0,0.8454398]
[1751532663237,0.74851377,109510.0,109500.0,0.80898549]
[1751532663741,0.64851377,109510.0,109500.0,0.80898549]
[1751532664444,0.64851377,109510.0,109500.0,0.87228549]
[1751532664742,0.70325712,109510.0,109500.0,0.87228549]
[1751532665043,0.64851377,109510.0,109500.0,0.87228549]
[1751532665644,0.73851377,109510.0,109500.0,0.87228549]
[1751532672652,0.79325712,109510.0,109500.0,0.62459222]
[1751532672852,0.79325712,109510.0,109500.0,0.87228549]
[1751532673253,0.73851377,109510.0,109500.0,0.9087398]
[1751532674654,0.73851377,109510.0,109500.0,0.89193458]
[1751532676756,1.00851377,109510.0,109500.0,0.64424131]
[1751532676958,1.00851377,109510.0,109500.0,0.89193458]
[1751532678261,1.00851377,109510.0,109500.0,0.85548027]
[1751532680854,1.01851377,109510.0,109500.0,0.85548027]
[1751532681255,1.01851377,109510.0,109500.0,0.89193458]
[1751532683666,1.84679377,109510.0,109500.0,0.89193458]
[1751532689464,1.84679377,109510.0,109500.0,0.36645431]
[1751532689667,0.182587,109500.0,109490.0,0.08131366]
[1751532689872,1.05097354,109500.0,109490.0,0.3732365]
[1751532690168,1.08297354,109500.0,109490.0,0.3732365]
[1751532692258,1.08297354,109500.0,109490.0,0.33673654]
[1751532692663,1.08497354,109500.0,109490.0,0.33673654]
[1751532693269,1.08497354,109500.0,109490.0,0.3732365]
[1751532694170,1.08497354,109500.0,109490.0,0.33673654]
[1751532694666,1.08697354,109500.0,109490.0,0.33673654]
[1751532699469,1.08697354,109500.0,109490.0,0.51934024]
[1751532701579,0.591587,109500.0,109490.0,0.51934024]
[1751532701774,1.08697354,109500.0,109490.0,0.51934024]
[1751532705570,1.08697354,109500.0,109490.0,0.5026037]
[1751532706780,1.08697354,109500.0,109490.0,0.32]
[1751532709680,0.1826037,109490.0,109480.0,0.70651451]
[1751532709880,0.81029697,109490.0,109480.0,0.98651451]
[1751532710277,0.81029697,109490.0,109480.0,0.60185884]
[1751532710477,0.87539697,109490.0,109480.0,0.60185884]
[1751532710779,0.90859697,109490.0,109480.0,0.41925234]
[1751532710979,0.90859697,109490.0,109480.0,0.38275238]
[1751532711681,1.73675697,109490.0,109480.0,0.28475238]
[1751532714369,1.74451725,109490.0,109480.0,0.28475238]
[1751532715780,1.73675697,109490.0,109480.0,0.28475238]
[1751532718881,1.74424504,109490.0,109480.0,0.28475238]
[1751532719180,1.73675697,109490.0,109480.0,0.28475238]
[1751532720874,1.73675697,109490.0,109480.0,0.32125234]
[1751532721281,1.73675697,109490.0,109480.0,0.28475238]
[1751532737004,1.4890637,109490.0,109480.0,0.28475238]
[1751532737295,1.73675697,109490.0,109480.0,0.28475238]
[1751532740592,1.73675697,109490.0,109480.0,0.00475238]
[1751532740792,1.98445024,109490.0,109480.0,0.06475238]
[1751532741494,1.98445024,109490.0,109480.0,0.00475238]
[1751532741798,1.98445024,109490.0,109480.0,0.27475238]
[1751532742000,1.73675697,109490.0,109480.0,0.27475238]
[1751532742298,1.98445024,109490.0,109480.0,0.27475238]
[1751532744990,1.73675697,109490.0,109480.0,0.27475238]
[1751532747406,1.98445024,109490.0,109480.0,0.00475238]
[1751532747614,1.98445024,109490.0,109480.0,0.02475238]
[1751532747913,1.98445024,109490.0,109480.0,0.29475238]
[1751532748515,1.73675697,109490.0,109480.0,0.29475238]
[1751532753418,1.79150032,109490.0,109480.0,0.29475238]
[1751532755722,1.79150032,109490.0,109480.0,0.09475238]
[1751532757028,1.79150032,109490.0,109480.0,0.10475238]
[1751532757227,1.79150032,109490.0,109480.0,0.31475238]
[1751532759627,1.54380705,109490.0,109480.0,0.31475238]
[1751532759830,1.79150032,109490.0,109480.0,0.31475238]
[1751532761024,1.54380705,109490.0,109480.0,0.31475238]
[1751532761226,1.79150032,109490.0,109480.0,0.31475238]
[1751532763330,1.73675697,109490.0,109480.0,0.31475238]
[1751532764426,1.75822004,109490.0,109480.0,0.31475238]
[1751532765431,1.75822004,109490.0,109480.0,0.00475238]
[1751532765627,1.75822004,109490.0,109480.0,0.30475238]
[1751532769435,1.51052677,109490.0,109480.0,0.30475238]
[1751532769734,1.75822004,109490.0,109480.0,0.30475238]
[1751532770635,1.75822004,109490.0,109480.0,0.10475238]
[1751532771136,1.75822004,109490.0,109480.0,0.31475238]
[1751532775939,1.75822004,109490.0,109480.0,0.10475238]
[1751532776137,1.75822004,109490.0,109480.0,0.28475238]
[1751532778642,1.51052677,109490.0,109480.0,0.28475238]
[1751532778939,1.75822004,109490.0,109480.0,0.28475238]
[1751532779138,1.51052677,109490.0,109480.0,0.00475238]
[1751532779348,1.75822004,109490.0,109480.0,0.32475238]
[1751532779738,1.51052677,109490.0,109480.0,0.00475238]
[1751532779944,1.75822004,109490.0,109480.0,0.01475238]
[1751532780244,1.75822004,109490.0,109480.0,0.27475238]
[1751532781843,1.51052677,109490.0,109480.0,0.27475238]
[1751532782143,1.98910004,109490.0,109480.0,0.27475238]
[1751532783546,1.98910004,109490.0,109480.0,0.02475238]
[1751532784447,1.98910004,109490.0,109480.0,0.00475238]
[1751532784746,1.98910004,109490.0,109480.0,0.27475238]
[1751532785042,1.98910004,109490.0,109480.0,0.01475238]
[1751532785246,1.98910004,109490.0,109480.0,0.28475238]
[1751532785448,0.93006004,109490.0,109480.0,0.28475238]
[1751532785648,0.83176004,109490.0,109480.0,0.53244565]
[1751532785948,1.66084004,109490.0,109480.0,0.34975238]
[1751532786151,1.66084004,109490.0,109480.0,0.38015238]
[1751532786546,1.28084004,109490.0,109480.0,0.10015238]
[1751532786744,1.28084004,109490.0,109480.0,0.41015238]
[1751532786948,1.65084004,109490.0,109480.0,0.41015238]
[1751532787248,1.65084004,109490.0,109480.0,0.59277268]
[1751532787745,1.65084004,109490.0,109480.0,0.41015238]
[1751532787950,0.82176004,109490.0,109480.0,0.59277268]
[1751532788148,1.88172004,109490.0,109480.0,0.59277268]
[1751532789945,1.51172004,109490.0,109480.0,0.59277268]
[1751532790149,1.82172004,109490.0,109480.0,0.59277268]
[1751532791144,1.82172004,109490.0,109480.0,0.41015238]
[1751532792351,1.88722004,109490.0,109480.0,0.41015238]
[1751532793152,1.88722004,109490.0,109480.0,0.37975238]
[1751532793353,1.94196339,109490.0,109480.0,0.37975238]
[1751532794453,1.69427012,109490.0,109480.0,0.37975238]
[1751532794851,1.94196339,109490.0,109480.0,0.37975238]
[1751532795251,0.88200339,109490.0,109480.0,0.37975238]
[1751532795452,1.94196339,109490.0,109480.0,0.56237278]
[1751532802250,1.94196339,109490.0,109480.0,0.37975238]
[1751532802860,1.94196339,109490.0,109480.0,0.56237268]
[1751532803359,1.88722004,109490.0,109480.0,0.56237268]
[1751532803858,1.88722004,109490.0,109480.0,0.37975238]
[1751532804156,1.91762004,109490.0,109480.0,0.37975238]
[1751532804363,1.66992677,109490.0,109480.0,0.56237278]
[1751532804556,1.91762004,109490.0,109480.0,0.56237278]
[1751532804754,1.91762004,109490.0,109480.0,0.37975238]
[1751532808961,1.91762004,109490.0,109480.0,0.56237268]
[1751532813457,1.66992677,109490.0,109480.0,0.56237268]
[1751532813656,0.74518677,109490.0,109480.0,0.81006595]
[1751532813867,1.82128004,109490.0,109480.0,0.84236595]
[1751532814970,1.57358677,109490.0,109480.0,0.84236595]
[1751532815170,1.82128004,109490.0,109480.0,0.84236595]
[1751532817669,1.85298004,109490.0,109480.0,0.84236595]
[1751532817970,1.60528677,109490.0,109480.0,0.84236595]
[1751532818171,1.54298004,109490.0,109480.0,0.84236595]
[1751532818371,1.88298004,109490.0,109480.0,0.84236595]
[1751532819773,1.88298004,109490.0,109480.0,0.59467268]
[1751532820172,1.88298004,109490.0,109480.0,0.41205238]
[1751532820370,1.89451697,109490.0,109480.0,0.41205238]
[1751532820571,1.94751394,109490.0,109480.0,0.41205238]
[1751532820966,1.94751394,109490.0,109480.0,0.59467268]
[1751532822274,1.94751394,109490.0,109480.0,0.52957268]
[1751532825670,1.94751394,109490.0,109480.0,0.77726595]
[1751532826176,1.71639394,109490.0,109480.0,0.77726595]
[1751532827880,1.71639394,109490.0,109480.0,0.80866595]
[1751532830377,0.57580067,109490.0,109480.0,1.05635922]
[1751532830576,1.62063394,109490.0,109480.0,0.80866595]
[1751532830779,1.62063394,109490.0,109480.0,0.84146595]
[1751532832185,1.68403394,109490.0,109480.0,0.84146595]
[1751532834187,1.43634067,109490.0,109480.0,0.84146595]
[1751532834387,1.68403394,109490.0,109480.0,0.84146595]
[1751532834688,1.65213394,109490.0,109480.0,0.84146595]
[1751532840588,0.54410067,109490.0,109480.0,1.08915922]
[1751532840794,0.37410067,109490.0,109480.0,1.42915922]
[1751532841089,0.20410067,109490.0,109480.0,1.14396175]
[1751532841290,0.20410067,109490.0,109480.0,1.24396175]
[1751532841488,0.1826037,109490.0,109480.0,1.28043487]
[1751532841688,0.74029697,109490.0,109480.0,0.84146595]
[1751532841994,0.74029697,109490.0,109480.0,0.59377268]
[1751532842193,0.43029697,109490.0,109480.0,0.84146595]
[1751532842391,0.43029697,109490.0,109480.0,1.08915922]
[1751532842692,0.43029697,109490.0,109480.0,0.84146595]
[1751532845593,0.1826037,109490.0,109480.0,1.08915922]
[1751532846596,0.1826037,109490.0,109480.0,1.39915922]
[1751532846798,1.39572497,109500.0,109490.0,0.1826037]
[1751532847000,1.39572497,109500.0,109490.0,0.78779697]
[1751532847001,0.3739013,109500.0,109490.0,0.78779697]
[1751532847198,0.6139013,109500.0,109490.0,0.78779697]
[1751532847496,0.86159457,109500.0,109490.0,0.78779697]
[1751532848100,0.2739013,109500.0,109490.0,0.78779697]
[1751532848301,0.62159457,109500.0,109490.0,0.78779697]
[1751532848494,0.3739013,109500.0,109490.0,0.78779697]
[1751532849192,0.62159457,109500.0,109490.0,0.78779697]
[1751532851102,0.62359457,109500.0,109490.0,0.78779697]
[1751532851900,0.62359457,109500.0,109490.0,0.5401037]
[1751532852102,0.62359457,109500.0,109490.0,0.78779697]
[1751532853997,0.62559457,109500.0,109490.0,0.78779697]
[1751532860710,0.62559457,109500.0,109490.0,0.5401037]
[1751532860914,0.62559457,109500.0,109490.0,0.78779697]
[1751532861911,0.3779013,109500.0,109490.0,0.78779697]
[1751532862113,0.62559457,109500.0,109490.0,0.78779697]
[1751532864713,0.3779013,109500.0,109490.0,0.78779697]
[1751532865013,0.68799457,109500.0,109490.0,0.78779697]
[1751532865616,0.68799457,109500.0,109490.0,0.5401037]
[1751532865920,0.68799457,109500.0,109490.0,0.78779697]